Cogmind - Beta 13 @@@ ROGUE MODE // 2024.06.08 @ 12:18:50 Player: BELIAL Result: Self-destructed Performance ------------- Evolutions (4) 2000 Regions Visited (8) 1600 Robots Destroyed (66) 330 Value Destroyed (1463) 1463 Prototype IDs (5) 100 Alien Tech Used (0) 0 Bonus (-469) -469 TOTAL SCORE: 5024 Bonus ------- Friendly Fire -469 Cogmind --------- Core Integrity 678/850 Matter 188/300 Energy 143/160 System Corruption 7% Temperature Cool (9) Movement Flying (195) Ox2 Location -6/Factory Parts ------- > --- POWER (2) -------- Light Fission Core > --- PROPULSION (4) --- Cesium-ion Thruster > --- UTILITY (7) ------ Enhanced Optical Array Advanced Sensor Array Advanced Signal Interpreter ECM Suite Improved Hacking Suite Improved Hacking Suite > --- WEAPON (2) ------- Chainsword > --- INVENTORY (5) ---- Gravity Neutralizer Authchip [Propulsion] Peak State ------------ > --- POWER ------------ Micro Nuclear Core Light Fission Core > --- PROPULSION ------- Improved Flight Unit Improved Flight Unit Improved Flight Unit Improved VTOL Module > --- UTILITY ---------- Structural Scanner Enhanced Optical Array Advanced Sensor Array Advanced Signal Interpreter Improved Hacking Suite Improved Hacking Suite Advanced Hacking Suite > --- WEAPON ----------- Chainsword > --- INVENTORY -------- Q-thruster Gravity Neutralizer ECM Suite Authchip [Propulsion] Heavy Plasma Cannon [Rating: 60] Favorites ----------- Power Micro Nuclear Core Engine Ion Engine Power Core Micro Nuclear Core Propulsion Improved Flight Unit Treads Armored Treads Leg Aluminum Leg Flight Unit Improved Flight Unit Utility Improved Hacking Suite Device Structural Scanner Storage Medium Storage Unit Processor Advanced Visual Processing Unit Hackware Improved Hacking Suite Protection Light Armor Plating Weapon Medium Laser Energy Gun Medium Laser Ballistic Gun Heavy Assault Rifle Launcher Mini Grenade Launcher Impact Weapon Great Maul Slashing Weapon Greatsword Build | -11 -10 -9 -9 -8 -7 -6 -6 -6 ------- Run | Yrd Mat Mat Min Mat Fac Fac Was Fac Slots Evolved 8 | . . 2 . 2 2 2 . . Power 1 | . . . . . . 1 . . Propulsion 2 | . . 1 . . 1 . . . Utility 5 | . . 1 . 2 1 1 . . Weapon . | . . . . . . . . . Parts Attached 91 | 7 4 16 9 8 21 18 . 8 Power 13 | 1 1 2 1 1 4 2 . 1 Engine 8 | 1 1 2 1 1 2 . . . Core 5 | . . . . . 2 2 . 1 Reactor . | . . . . . . . . . Propulsion 24 | 2 1 3 4 2 4 3 . 5 Treads 3 | . . 3 . . . . . . Leg 3 | 2 1 . . . . . . . Wheel . | . . . . . . . . . Hover . | . . . . . . . . . Flight 18 | . . . 4 2 4 3 . 5 Utility 33 | 2 1 4 1 3 11 9 . 2 Device 16 | 1 1 1 1 2 4 5 . 1 Storage 2 | 1 . 1 . . . . . . Processor 4 | . . . . 1 1 1 . 1 Hackware 7 | . . . . . 5 2 . . Protection 4 | . . 2 . . 1 1 . . Artifact . | . . . . . . . . . Weapon 21 | 2 1 7 3 2 2 4 . . Energy Gun 8 | 2 1 4 1 . . . . . Energy Cannon . | . . . . . . . . . Ballistic Gun 2 | . . 2 . . . . . . Ballistic Cannon . | . . . . . . . . . Launcher 2 | . . 1 1 . . . . . Special Weapon . | . . . . . . . . . Impact Weapon 1 | . . . 1 . . . . . Slashing Weapon 8 | . . . . 2 2 4 . . Piercing Weapon . | . . . . . . . . . Special Melee Weapon . | . . . . . . . . . Unidentified Prototypes 2 | . . 1 1 . . . . . Parts Lost 22 | . 1 7 8 . 1 . . 5 Power 4 | . 1 2 1 . . . . . Propulsion 6 | . . . 2 . . . . 4 Utility 6 | . . 2 2 . 1 . . 1 Weapon 6 | . . 3 3 . . . . . Highest Loss Streak 8 | . 1 2 8 . 1 . . 4 To Critical Strikes . | . . . . . . . . . Average Slot Usage (%) 88 | . 99 92 91 61 87 82 93 80 Engine 6 | . 13 10 9 9 2 . . . Core 2 | . . . . . 4 7 13 9 Treads 8 | . . 21 30 . . . . . Leg 4 | . 28 7 . . . . . . Flight 14 | . . . 1 27 29 21 26 20 Device 12 | . 14 9 9 13 15 13 13 11 Storage 5 | . 14 11 11 . . . . . Processor 4 | . . . . 2 7 8 13 13 Hackware 8 | . . . . . 15 20 20 17 Protection 4 | . . 9 9 . 1 3 . . Energy Gun 7 | . 28 15 9 . . . . . Ballistic Gun 2 | . . 5 9 . . . . . Slashing Weapon 3 | . . . . 6 6 5 6 6 Naked Turns . | . . . . . . . . . Heaviest Build 27 | 15 15 27 27 9 19 20 18 18 Greatest Support 60 | 20 20 60 60 15 20 20 20 20 Greatest Overweight (x) 1 | . . 1 . . . . . 1 Average Overweight (x) . | . . . . . . . . . Largest Inventory Capacity 10 | 8 8 10 10 5 5 5 5 5 Average Capacity 7 | 7 8 9 10 5 5 5 5 5 Most Carried 10 | 4 8 10 10 5 5 5 5 5 Average Carried 6 | 3 6 9 9 4 4 4 4 4 Final Capacity 10 | 8 8 10 5 5 5 5 5 5 Final Carried 10 | 4 8 10 5 4 5 4 5 2 Class Distribution -------------------- 47% | Mutant 16% | Hacker-Sprinter 13% | Hacker-Scout 5% | Scavenger-Sprinter 4% | Hacker-Mutant 3% | Hacker-Ninja 3% | Sprinter Dominant Class ---------------- Mutant | -10/Materials Mutant | -9/Materials Mutant | -9/Mines Mutant | -8/Materials Hacker-Sprinter | -7/Factory Hacker-Scout | -6/Factory Hacker-Scout | -6/Waste Hacker-Scout | -6/Factory Resources | -11 -10 -9 -9 -8 -7 -6 -6 -6 ----------- Run | Yrd Mat Mat Min Mat Fac Fac Was Fac Matter Collected 1113 | 270 20 182 145 19 337 140 . . Remotely . | . . . . . . . . . Salvage Created 2256 | 107 396 782 208 42 621 100 . . Parts 135 | 3 23 39 12 1 50 7 . . Haulers Intercepted 2 | . 1 1 . . . . . . Recyclers Shooed 1 | . . 1 . . . . . . Parts Field Recycled . | . . . . . . . . . Retrieved Matter . | . . . . . . . . . Parts Self-Destructed . | . . . . . . . . . Prevented . | . . . . . . . . . Kills | -11 -10 -9 -9 -8 -7 -6 -6 -6 ------- Run | Yrd Mat Mat Min Mat Fac Fac Was Fac Combat Hostiles Destroyed 50 | . 7 18 20 . 4 1 . . Melee 5 | . . . . . 4 1 . . Guns 27 | . 7 15 5 . . . . . AOE 18 | . . 3 15 . . . . . Classes Destroyed 13 | 2 4 3 1 . 3 . . . Worker 5 | . . 1 . . 4 . . . Builder 3 | . . . . . 3 . . . Tunneler 2 | 1 . . 1 . . . . . Hauler 2 | . 1 1 . . . . . . Recycler 4 | 1 1 1 . . 1 . . . Operator 6 | . . 2 . 1 2 1 . . Watcher 8 | . 2 . . 1 5 . . . Swarmer 11 | . 3 3 5 . . . . . Grunt 17 | . 4 12 . . 1 . . . Sentry 3 | . . 3 . . . . . . Hunter 2 | . . . . . 1 1 . . Programmer 2 | . . . . . 2 . . . Assembled 15 | . . . 15 . . . . . Thug 1 | . . . 1 . . . . . Best Kill Streak 16 | 2 4 4 16 1 3 1 . . Combat Bots Only 15 | . 3 4 15 . 1 1 . . Max Kills in Single Turn 4 | 1 1 2 4 1 1 1 . . Gunslinging . | . . . . . . . . . Exploded 4 | . . 2 4 . . . . . Melee 1 | . . . . . 1 1 . . Uniques/NPCs Destroyed . | . . . . . . . . . Combat | -11 -10 -9 -9 -8 -7 -6 -6 -6 -------- Run | Yrd Mat Mat Min Mat Fac Fac Was Fac Hostile Shots Fired 400 | . 33 113 67 25 88 40 . 34 Missed 153 | . 8 28 17 15 50 20 . 15 Damage Taken 3473 | . 303 1017 1143 116 377 189 . 328 Core 683 | . 47 69 254 37 104 57 . 115 Absorbed by Shields 40 | . . . . . . . . 40 Regen/Repaired (Parts) 253 | . . 44 . . 15 194 . . Core Remaining (%) 75 | 100 81 . 19 93 85 . . . Volleys Fired 133 | 4 32 78 19 . . . . . Largest 2 | 2 2 2 2 . . . . . Hottest 100 | 100 100 100 68 . . . . . Shots Fired 249 | 8 64 147 30 . . . . . Gun 240 | 8 64 144 24 . . . . . Cannon . | . . . . . . . . . Launcher 9 | . . 3 6 . . . . . Special . | . . . . . . . . . Kinetic 58 | . . 47 11 . . . . . Thermal 169 | 8 64 97 . . . . . . Explosive 9 | . . 3 6 . . . . . Electromagnetic 13 | . . . 13 . . . . . Robot Hit Streak 14 | 7 9 14 4 . . . . . Robot Miss Streak 7 | . 6 3 7 . . . . . Penetration Max . | . . . . . . . . . Secondary Targets 3 | . . 2 1 . . . . . Max Gunslinging Chain 1 | . . 1 1 . . . . . Shots Hit Robots 192 | 7 34 104 13 3 26 5 . . Core Hits 130 | 3 19 50 38 1 16 3 . . Critical Kills . | . . . . . . . . . Critical Parts Destroyed 2 | . . 1 . 1 . . . . Critical Strikes 13 | 1 1 9 . 1 1 . . . Burn 10 | 1 1 8 . . . . . . Destroy 1 | . . 1 . . . . . . Smash 1 | . . . . 1 . . . . Sever 1 | . . . . . 1 . . . Melee Attacks 100 | . . . . 9 66 21 . 4 Impact 1 | . . . . 1 . . . . Slashing 99 | . . . . 8 66 21 . 4 Piercing . | . . . . . . . . . Sneak Attacks 12 | . . . . 2 10 . . . Combat Hostiles 1 | . . . . . 1 . . . Follow-up Attacks . | . . . . . . . . . Damage Inflicted 5578 | 87 426 1473 1160 278 1921 233 . . Guns 1846 | 87 426 1176 157 . . . . . Cannons . | . . . . . . . . . Explosions 1297 | . . 294 1003 . . . . . Melee 2432 | . . . . 278 1921 233 . . Ramming 3 | . . 3 . . . . . . Kinetic 407 | . . 378 29 . . . . . Thermal 1356 | 87 426 798 45 . . . . . Explosive 1252 | . . 294 958 . . . . . Electromagnetic 128 | . . . 128 . . . . . Impact 65 | . . . . 65 . . . . Slashing 2367 | . . . . 213 1921 233 . . Piercing . | . . . . . . . . . Highest Corruption 7 | . . . 6 . . 1 7 7 Average Corruption 3 | . . . 5 . . 1 2 7 Corruption Purged . | . . . . . . . . . Corruption Blocked . | . . . . . . . . . Effects 12 | . . . 3 . . 5 1 3 Message Errors 3 | . . . 1 . . 2 . . Matter Fused 2 | . . . . . . . . 2 Heat Flow Errors 3 | . . . 1 . . . 1 1 Parts Rejected 1 | . . . 1 . . . . . Data Loss (minor) 2 | . . . . . . 2 . . Data Loss (major) 1 | . . . . . . 1 . . Overload Shots . | . . . . . . . . . Overflow Damage 499 | . . 2 . 136 341 20 . . Projectiles . | . . . . . . . . . Explosions 2 | . . 2 . . . . . . Melee 497 | . . . . 136 341 20 . . Knockbacks 1 | . . . . 1 . . . . Impact 1 | . . . . 1 . . . . Kinetic . | . . . . . . . . . Secondary . | . . . . . . . . . Self-Inflicted Damage 106 | . . . 106 . . . . . Shots 3 | . . . 3 . . . . . Rammed 1 | . . 1 . . . . . . Targets Rammed 1 | . . 1 . . . . . . Kicked . | . . . . . . . . . Crushed . | . . . . . . . . . Highest Temperature 324 | 156 324 31 190 . 3 . 122 110 Average Temperature 58 | 80 102 11 36 . 1 . 119 70 Received Heat Transfer 920 | . 141 495 20 36 90 . . 138 Effects 4 | . 4 . . . . . . . Energy Bleed 1 | . 1 . . . . . . . Interference 3 | . 3 . . . . . . . Siege Activations . | . . . . . . . . . Robots Corrupted . | . . . . . . . . . Combat Hostiles . | . . . . . . . . . Parts Fried 1 | . . . . 1 . . . . Impact Corruptions 2 | . . . . 2 . . . . Robots Melted 1 | . . 1 . . . . . . Combat Hostiles . | . . . . . . . . . Parts Melted 7 | 1 . 6 . . . . . . Heat Transferred 4595 | 333 1332 2830 100 . . . . . Parts Sabotaged . | . . . . . . . . . Parts Stolen . | . . . . . . . . . Parts Stripped . | . . . . . . . . . Power Chain Reactions 1 | . . . 1 . . . . . Alert | -11 -10 -9 -9 -8 -7 -6 -6 -6 ------- Run | Yrd Mat Mat Min Mat Fac Fac Was Fac Peak Influence 356 | 10 166 282 187 212 356 269 41 60 Initial 174 | . 6 32 74 11 95 174 26 28 Average 105 | 2 78 89 112 135 121 143 32 30 Maximum Alert Level 1 | . . 1 . 1 1 1 . . Low Security (%) 88 | 100 100 91 100 91 82 71 100 100 Level 1 11 | . . 8 . 8 17 28 . . Level 2 . | . . . . . . . . . Level 3 . | . . . . . . . . . Level 4 . | . . . . . . . . . Level 5 . | . . . . . . . . . High Security . | . . . . . . . . . Max Security . | . . . . . . . . . Squads Dispatched 21 | . 1 2 . 3 11 2 . 2 Investigation 14 | . 1 . . 1 9 2 . 1 Extermination 1 | . . . . . 1 . . . Reinforcement 6 | . . 2 . 2 1 . . 1 Assault . | . . . . . . . . . Garrison . | . . . . . . . . . Intercept . | . . . . . . . . . Searches Triggered . | . . . . . . . . . Construction Impeded . | . . . . . . . . . Haulers Reinforced . | . . . . . . . . . Active Scanning Responses . | . . . . . . . . . Cargo Convoy Interrupts . | . . . . . . . . . Stealth | -11 -10 -9 -9 -8 -7 -6 -6 -6 --------- Run | Yrd Mat Mat Min Mat Fac Fac Was Fac Distress Signals 4 | . 1 1 . 1 . 1 . . Communications Jammed . | . . . . . . . . . Distress Signals . | . . . . . . . . . Times Spotted 165 | . 10 34 27 21 42 15 6 10 Peak Tracking Total 16 | . 3 5 16 9 5 6 6 5 Tactical Retreats 22 | . 1 2 1 3 11 3 . 1 Traps | -11 -10 -9 -9 -8 -7 -6 -6 -6 ------- Run | Yrd Mat Mat Min Mat Fac Fac Was Fac Traps Triggered 8 | . 2 . . 1 . 2 . 3 Indirectly . | . . . . . . . . . Trap Hack Attempts . | . . . . . . . . . Triggered . | . . . . . . . . . Disarmed . | . . . . . . . . . Reprogrammed . | . . . . . . . . . Reused . | . . . . . . . . . Traps Extracted . | . . . . . . . . . Installed . | . . . . . . . . . Triggered . | . . . . . . . . . Machines | -11 -10 -9 -9 -8 -7 -6 -6 -6 ---------- Run | Yrd Mat Mat Min Mat Fac Fac Was Fac Machines Disabled 1 | . . . . . . 1 . . Max in Single Turn 1 | . . . . . . 1 . . Garrison Access 6 | . . . . . 3 2 . 1 Machines Repaired . | . . . . . . . . . Machines Dismantled . | . . . . . . . . . Machines Sabotaged . | . . . . . . . . . Overloaded Fab Kills . | . . . . . . . . . Hacking | -11 -10 -9 -9 -8 -7 -6 -6 -6 --------- Run | Yrd Mat Mat Min Mat Fac Fac Was Fac Machines Accessed 69 | . 5 9 1 7 32 12 . 3 Terminals 40 | . 5 5 1 6 18 4 . 1 Fabricators 8 | . . . . . 6 1 . 1 Repair Stations 5 | . . 1 . . 1 3 . . Recycling Units 6 | . . 2 . . 3 1 . . Scanalyzers 4 | . . 1 . 1 1 1 . . Garrison Access 6 | . . . . . 3 2 . 1 Total Hacks 188 | . 14 25 1 29 75 36 . 8 Successful 110 | . 6 13 . 17 41 27 . 6 Failed 78 | . 8 12 1 12 34 9 . 2 Catastrophic 12 | . 1 1 1 3 6 . . . Database Lockouts . | . . . . . . . . . Manual 96 | . 12 10 1 21 37 10 . 5 Terminals 121 | . 14 16 1 24 48 13 . 5 Fabricators 19 | . . . . . 15 2 . 2 Repair Stations 17 | . . 3 . . 3 11 . . Recycling Units 11 | . . 3 . . 5 3 . . Scanalyzers 13 | . . 3 . 5 1 4 . . Garrison Access 7 | . . . . . 3 3 . 1 Terminal Hacks 38 | . 3 5 . 4 17 7 . 2 Record 1 | . . . . . 1 . . . Part Schematic 3 | . . . . . 1 2 . . Prototype ID Bank 1 | . . . . . 1 . . . Level Access Points 2 | . . . . 1 . 1 . . Branch Access Points 4 | . . 1 . 1 1 1 . . Terminal Index 5 | . 1 1 . . 1 1 . 1 Fabricator Index 2 | . . . . . 1 1 . . Scanalyzer Index 2 | . . . . . 1 . . 1 Alert Level 1 | . . . . . . 1 . . Unreport Threat 2 | . . . . . 2 . . . Locate Traps 4 | . 1 1 . 1 1 . . . Investigation Status 1 | . . . . . 1 . . . Recall Investigation 3 | . . . . . 3 . . . Recall Reinforcements 2 | . . . . 1 1 . . . Registered Components 1 | . . . . . 1 . . . Zone Layout 4 | . 1 2 . . 1 . . . Fabricator Hacks 14 | . . . . . 10 2 . 2 Load Schematic 7 | . . . . . 5 1 . 1 Build 7 | . . . . . 5 1 . 1 Repair Station Hacks 13 | . . 2 . . 2 9 . . Scan Component 7 | . . 1 . . 1 5 . . Repair 6 | . . 1 . . 1 4 . . Recycling Unit Hacks 4 | . . 1 . . 3 . . . Report Inventory 1 | . . . . . 1 . . . Retrieve Components 3 | . . 1 . . 2 . . . Scanalyzer 11 | . . 2 . 5 . 4 . . Insert Component 5 | . . 1 . 2 . 2 . . Analyze 6 | . . 1 . 3 . 2 . . Garrison Access Hacks 6 | . . . . . 3 2 . 1 Seal Access 6 | . . . . . 3 2 . 1 Unauthorized Hacks 24 | . 3 3 . 8 6 3 . 1 Terminals 22 | . 3 3 . 8 4 3 . 1 Assimilate 7 | . 1 . . 5 1 . . . Botnet 12 | . 2 2 . 2 3 2 . 1 Operators 3 | . . 1 . 1 . 1 . . Fabricators 1 | . . . . . 1 . . . Recompile 1 | . . . . . 1 . . . Repair Stations . | . . . . . . . . . Recycling Units 1 | . . . . . 1 . . . Monitor 1 | . . . . . 1 . . . Scanalyzers . | . . . . . . . . . Garrison Access . | . . . . . . . . . Data Cores Recovered . | . . . . . . . . . Used . | . . . . . . . . . Hacking Detections 58 | . 5 8 1 6 27 9 . 2 Full Trace Events 12 | . . . . 1 8 2 . 1 Feedback Events 1 | . . . . . 1 . . . Hackware Fried 1 | . . . . . 1 . . . Feedback Blocked . | . . . . . . . . . Robot Schematics Acquired . | . . . . . . . . . Robots Built . | . . . . . . . . . Authchips . | . . . . . . . . . Time . | . . . . . . . . . Total Robot Build Rating . | . . . . . . . . . Part Schematics Acquired 8 | . . 1 . 2 1 4 . . Parts Built 6 | . . . . . 5 1 . . Authchips . | . . . . . . . . . Time 527 | . . . . . 368 53 . 106 Total Part Build Rating 27 | . . . . . 21 6 . . Parts Repaired 6 | . . 1 . . 1 4 . . Time 257 | . . 26 . . 25 206 . . Parts Recycled . | . . . . . . . . . Recycled Matter . | . . . . . . . . . Retrieved Matter . | . . . . . . . . . Retrieved Components 15 | . . 5 . . 10 . . . Parts Scanalyzed 5 | . . 1 . 2 . 2 . . Part Schematics Acquired 5 | . . 1 . 2 . 2 . . Parts Damaged . | . . . . . . . . . Bothacking | -11 -10 -9 -9 -8 -7 -6 -6 -6 ------------ Run | Yrd Mat Mat Min Mat Fac Fac Was Fac Used RIF Installer . | . . . . . . . . . Robots Hacked . | . . . . . . . . . Non-combat . | . . . . . . . . . Combat . | . . . . . . . . . Robot Hacks Applied . | . . . . . . . . . Relay Couplers Released . | . . . . . . . . . Fabnet Peak Effective % . | . . . . . . . . . Robots Rewired . | . . . . . . . . . Allies Hacked . | . . . . . . . . . Hacks Repelled . | . . . . . . . . . Allies | -11 -10 -9 -9 -8 -7 -6 -6 -6 -------- Run | Yrd Mat Mat Min Mat Fac Fac Was Fac Total Allies 3 | . . . . 2 1 . . . Largest Group 1 | . . . . 1 . . . . Highest-Rated Group 10 | . . . . 10 . . . . Highest-Rated Ally 10 | . . . . 10 . . . . Total Orders . | . . . . . . . . . Ally Attacks . | . . . . . . . . . Total Damage . | . . . . . . . . . Kills . | . . . . . . . . . Allies Corrupted . | . . . . . . . . . Allies Melted . | . . . . . . . . . Intel | -11 -10 -9 -9 -8 -7 -6 -6 -6 ------- Run | Yrd Mat Mat Min Mat Fac Fac Was Fac Robot Analysis Total . | . . . . . . . . . Derelict Logs Recovered 2 | . . . 2 . . . . . Drone Launches . | . . . . . . . . . Drone Recoveries . | . . . . . . . . . Exploration | -11 -10 -9 -9 -8 -7 -6 -6 -6 ------------- Run | Yrd Mat Mat Min Mat Fac Fac Was Fac Turns Passed 5147 | 91 485 1368 519 158 1444 825 22 235 Spaces Moved 5502 | 55 301 555 333 263 2391 1218 70 316 Core 18 | 1 . . . . . . . 17 Treads 630 | . . 379 251 . . . . . Legs 531 | 54 301 176 . . . . . . Wheels . | . . . . . . . . . Hover . | . . . . . . . . . Flight 4323 | . . . 82 263 2391 1218 70 299 Fastest Speed 26 | 50 120 120 34 32 29 29 29 26 Average Speed 56 | 118 120 173 137 34 29 31 29 33 Slowest Speed 250 | 120 120 250 170 37 29 34 29 109 Overloaded Moves . | . . . . . . . . . Propulsion Burnouts . | . . . . . . . . . Robots Hopped 6 | . . . . 1 3 2 . . Cave-ins Triggered . | . . . . . . . . . Exploration Rate (%) 46 | 4 51 53 72 37 69 34 83 16 Regions Visited 8 Branch Regions 1 Pre-discovered Areas . | . . . . . . . . . Known Exits Taken 3 | . . 1 . 1 1 . . . Unknown Exits Taken 3 | 1 1 . 1 . . . . . Scrap Searched . | . . . . . . . . . Spaces Dug 55 | . . . . 6 31 14 . 4 Terrain Destroyed 93 | . . 18 20 6 31 14 . 4 Melee 55 | . . . . 6 31 14 . 4 Projectile . | . . . . . . . . . AOE 38 | . . 18 20 . . . . . Terrain Rammed . | . . . . . . . . . Walls Destroyed . | . . . . . . . . . Machines Disabled . | . . . . . . . . . Actions | -11 -10 -9 -9 -8 -7 -6 -6 -6 --------- Run | Yrd Mat Mat Min Mat Fac Fac Was Fac Total 7071 | 69 360 819 363 311 3011 1627 70 441 Wait 1129 | . 19 154 . 30 508 359 . 59 Move 5483 | 54 300 554 332 260 2384 1214 69 316 Hop 6 | . . . . 1 3 2 . . Pick Up 33 | 4 4 9 . 1 9 4 1 1 Fast Attach 50 | 7 3 9 2 5 12 8 . 4 Attach 22 | . 1 4 4 2 3 5 . 3 Detach 9 | . 1 . . 1 3 3 . 1 Swap 19 | . . 3 3 1 6 5 . 1 Drop 42 | . . 7 3 1 17 6 . 8 Fire 133 | 4 32 78 19 . . . . . Melee 100 | . . . . 9 66 21 . 4 Ram . | . . . . . . . . . Kick . | . . . . . . . . . Crush 1 | . . 1 . . . . . . Escape Stasis 44 | . . . . . . . . 44 Rewire . | . . . . . . . . . Trap . | . . . . . . . . . Miscellaneous . | . . . . . . . . . Route ------- -11/Scrapyard -10/Materials (discovered 2 exits: *Mat x2) -9/Materials (discovered 2 exits: *Min / Sto) -9/Mines (discovered 2 exits: *Mat x2) -8/Materials (discovered 3 exits: *Fac x3) -7/Factory (discovered 6 exits: *Fac x4 / *Low x2) -6/Factory (discovered 6 exits: *Fac x4 / Low x2) -6/Waste -6/Factory History --------- Turn | Location | Event 12 | -11/Scrapyard | Discovered new exit (range 16) 92 | -11/Scrapyard | Entered Materials 187 | -10/Materials | Discovered new exit (range 5) 313 | -10/Materials | Build established: Mutant 474 | -10/Materials | Discovered new exit (range 9) 577 | -10/Materials | Entered another Materials area 577 | -9/Materials | Evolved 2 slots: Propulsion x1, Utility x1 620 | -9/Materials | Repaired Med. Laser 1694 | -9/Materials | Identified exit to Mines 1694 | -9/Materials | Identified exit to Storage 1945 | -9/Materials | Entered Mines 1959 | -9/Mines | Discovered new exit (range 7) 2112 | -9/Mines | Discovered new exit (range 5) 2191 | -9/Mines | Learned location of 1 exit from Materials 2218 | -9/Mines | Learned Materials terminal intel 2370 | -9/Mines | Assembled infested the area 2410 | -9/Mines | Destroyed 15 combat bots 2425 | -9/Mines | Core integrity fell below 50% 2429 | -9/Mines | Core integrity fell below 20% 2455 | -9/Mines | Lost 8 parts (1p2n2u3w) 2464 | -9/Mines | Entered Materials 2464 | -8/Materials | Evolved 2 slots: Utility x2 2465 | -8/Materials | Identified exit to Factory 2466 | -8/Materials | Loaded intel: 12 terminal locations 2622 | -8/Materials | Entered Factory 2622 | -7/Factory | Evolved 2 slots: Propulsion x1, Utility x1 2699 | -7/Factory | Fabricated Hacking Suite? 2918 | -7/Factory | Discovered new exit (range 15) 2930 | -7/Factory | Discovered new exit (range 9) 3103 | -7/Factory | Discovered new exit (range 4) 3205 | -7/Factory | Identified exit to Lower Caves 3215 | -7/Factory | Fabricated Imp. Hacking Suite? 3300 | -7/Factory | Repaired Imp. Flight Unit 3333 | -7/Factory | Hacking Suite fried by hacking feedback 3358 | -7/Factory | Discovered new exit (range 16) 3398 | -7/Factory | Discovered new exit (range 5) 3530 | -7/Factory | Build established: Hacker-Sprinter 3562 | -7/Factory | Fabricated Imp. Hacking Suite? 3685 | -7/Factory | Fabricated Imp. Hacking Suite? 3764 | -7/Factory | Fabricated Imp. VTOL Module? 4065 | -7/Factory | Identified exit to Factory 4066 | -7/Factory | Entered another Factory area 4066 | -6/Factory | Evolved 2 slots: Power x1, Utility x1 4088 | -6/Factory | Discovered new exit (range 12) 4138 | -6/Factory | Identified exit to Lower Caves 4138 | -6/Factory | Identified exit to Factory 4190 | -6/Factory | Repaired Greatsword 4251 | -6/Factory | Repaired Imp. VTOL Module? 4291 | -6/Factory | Fabricated Adv. Hacking Suite (x1) 4433 | -6/Factory | Repaired Imp. Flight Unit 4485 | -6/Factory | Repaired Imp. Flight Unit 4782 | -6/Factory | Build established: Hacker-Scout 4891 | -6/Factory | Sucked down chute 4891 | -6/Factory | Entered Waste 4897 | -6/Waste | Spotted C-40 Crusher 4903 | -6/Waste | Spotted C-40 Crusher 4903 | -6/Waste | Spotted C-40 Crusher 4904 | -6/Waste | Spotted C-40 Crusher 4905 | -6/Waste | Spotted C-40 Crusher 4905 | -6/Waste | Spotted C-40 Crusher 4906 | -6/Waste | EMP discharged 4906 | -6/Waste | Discovered new exit (range 22) 4912 | -6/Waste | Identified exit to Factory 4913 | -6/Waste | Entered Factory 5116 | -6/Factory | Lost 4 parts (3n1u) 5148 | -6/Factory | Self-destructed Last Messages --------------- Field strength at 27. Field strength at 21. Field strength at 15. Field strength at 9. Field strength at 3. Stasis field depleted. Connecting with Terminal... >>Trojan(Botnet) Trojan loaded successfully. Testing... Terminal linked with 0 systems. Awaiting botnet instructions. >>Index(Terminals) Found 26 terminals. Downloaded coordinate data. >>Index(Scanalyzers) Found 4 scanalyzers. Downloaded coordinate data. System corrupted: Matter fused (-10). Q-thruster destroyed. Map ----- +----------------------------------------------------+ | ?????????????????????????????????????????????????? | | ?????????????????????????????????????????????????? | | ?????????????????????????????????????????????????? | | ?????????????????????????????????????????????????? | | ?????????????????????????????????????????????????? | | ?????????????????????????????????????????????????? | | ?????????????????????????????????????????????????? | | ?????????????????????????????????????????????????? | | ?????????????????????????????????????????????????? | | ?????????????????????????????????????????????????? | | ?????????????????????????????????????????????????? | | ?????????????????????????????????????????????????? | | ?????????????????????????????????????????????????? | | ?????????????????????????????????????????????????? | | ?????????????????????????????????????????????????? | | ?????????????????????????????????????????????????? | | ?????????????????????????????????????????????????? | | ?????????????????????????????????????????????????? | | ?????????????????????????????????????????????????? | | ?????????????????????????????????????????????????? | | ?????????????????????????????????????????????????? | | ?????????????????????????????????????????????????? | | ?????????????????????????????????????????????????? | | ???????????????????##?######?????????????????????? | | ?????###############;##T #;############## ??????? | | ?????+ ^ @ #??? | | ??? # Ak +??? | | ? + ^ #??? | | ? # g g ???? | | ?????# t gg k ???? | | ?????# #########+#####+##############/### ????? | | ?????# #??# A #??????????R??????????????? | | ?????# #??# g #?????????????????????????? | | ?????# #??# g #?????????????????????????? | | ##???# #??# #?????????????????????????? | | ?### #### g ! #?????????????????????????? | | " !# ## #?????????????????????????? | | " # ## #?????????????????????????? | | " + T / #?????????????????????????? | | # ## #?????????????????????????? | | ! # ## #?????????????????????????? | | ##?## ### #?????????????????????????? | | # #?# ] #?????????????????????????? | | " + #?##############?????????????????????????? | | " ] # #? #??????????????????????????????? | | " ??# #? #??????????????????????????????? | | ????# # #??????????????????????????????? | | ????# # #??????????????????????????????? | | ????# + #??????????????????????????????? | | ????# # #??????????????????????????????? | +----------------------------------------------------+ Best States ------------- Heat Dissipation 42 Energy Generation 28 Energy Capacity 275 Matter Stores 300 Matter Capacity 300 Sight Range 22 Robot Scan Range 16 Terrain Scan Density 10 ECM Strength 1 Armor Coverage 150 Evasion (%) 64 Recoil Reduction 3 Offensive Hacking 38 Authchip Count 1 Item Schematics ----------------- Imp. Heat Sink | -9/Materials | Scanalyzed Hacking Suite | -8/Materials | Scanalyzed Imp. VTOL Module | -8/Materials | Scanalyzed Imp. Hacking Suite | -7/Factory | Hacked Adv. Hacking Suite | -6/Factory | Hacked Adv. System Restoration Module | -6/Factory | Hacked ECM Suite | -6/Factory | Scanalyzed Imp. Light Armor Plating | -6/Factory | Scanalyzed Robot Schematics ------------------ None Fabricated ------------ Hacking Suite | x1 | -7/Factory Imp. Hacking Suite | x1 | -7/Factory Imp. Hacking Suite | x1 | -7/Factory Imp. Hacking Suite | x1 | -7/Factory Imp. VTOL Module | x1 | -7/Factory Adv. Hacking Suite | x1 | -6/Factory Alien Tech Used ----------------- None Achievements -------------- Exterminator Challenges ------------ None Game ------ Seed DiametricSignalProjector Manual? 0 Play Time 01:15:19 Cumulative 119.9 hours Start 2024.06.08 @ 11:04:24 End 2024.06.08 @ 12:18:50 Sessions 1 Manual Loads 0 Difficulty Rogue Special Mode None Game No. 95 Rogue 95 Adventurer 0 Explorer 0 Win Type - Total 0 Types 0/0/0/0/0/0/0/0/0 Lore% 25 Gallery% 44 Achievement% 33 Wizard Run 0 Options --------- Layout 1 ASCII 0 Keyboard 0 Movement Mouse Keybinds 0 Fullscreen 1 Font 24/Smallcaps Map View 50x35 Zoom Use 0% Tactical HUD 0 Map Filters NONE Filters NONE Steam 1 RUN: 90833f79-65b9-43e2-8534-2a369399790c